[Event "RUDAR 1 IM 2022"]
[Site "Pozarevac"]
[Date "2022.03.28"]
[Round "4.1"]
[White "Milanovic, Slavisa"]
[Black "Acor, Corey"]
[Result "1/2-1/2"]
[ECO "D46"]
[WhiteElo "2296"]
[BlackElo "2326"]
[Annotator "NA"]
[PlyCount "88"]
[EventDate "2022.03.27"]
[EventType "tourn"]
[EventCountry "SRB"]
[SourceTitle "playchess.com"]
[Source "ChessBase"]
[SourceQuality "1"]
[TimeControl "40/5400+30:900+30"]

1. d4 {[%emt 0:00:07]} d5 {[%emt 0:00:36]} 2. Nf3 {[%emt 0:00:23]} Nf6 {[%emt 0:00:10]} 3. c4 {[%emt 0:00:13]} e6 {[%emt 0:00:11]} 4. Nc3 {[%emt 0:00:11]} c6 {[%emt 0:05:04]} 5. e3 {[%emt 0:01:23]} Nbd7 {[%emt 0:01:11]} 6. Qc2 {[%emt 0:00:36]} Bd6 {[%emt 0:01:09]} 7. Bd3 {[%emt 0:00:17]} dxc4 {[%emt 0:03:39]} 8. Bxc4 {[%emt 0:00:15]} b5 {[%emt 0:03:58]} 9. Be2 {[%emt 0:00:13]} Bb7 {[%emt 0:00:59]} 10. e4 {[%emt 0:02:52]} Be7 {[%emt 0:11:29]} 11. O-O {[%emt 0:07:54]} a6 {[%emt 0:02:20]} 12. e5 {[%emt 0:17:13]} Nd5 {[%emt 0:02:42]} 13. Nxd5 {[%emt 0:00:06]} cxd5 {[%emt 0:04:00]} 14. a4 {[%emt 1:05:47]} Qa5 {[%emt 0:19:55]} 15. Bd2 {[%emt 0:00:00]} b4 {[%emt 0:03:17]} 16. Rfc1 {[%emt 0:00:00]} Rc8 {[%emt 0:02:18]} 17. Qd3 {[%emt 0:00:00]} O-O {[%emt 0:01:17]} 18. Bg5 {[%emt 0:00:00]} Qd8 {[%emt 0:09:10]} 19. Rxc8 {[%emt 0:00:00]} Bxc8 {[%emt 0:00:04]} 20. Bxe7 {[%emt 0:00:00]} Qxe7 {[%emt 0:00:21]} 21. Rc1 {[%emt 0:00:00]} Nb6 {[%emt 0:09:23]} 22. b3 {[%emt 0:00:00]} Bb7 {[%emt 0:00:38]} 23. h4 {[%emt 0:00:00]} Rc8 {[%emt 0:03:09]} 24. Rxc8+ {[%emt 0:00:00]} Nxc8 {[%emt 0:00:16]} 25. Ng5 {[%emt 0:00:00]} g6 {[%emt 0:00:58]} 26. Qe3 {[%emt 0:00:00]} Na7 {[%emt 0:07:11]} 27. h5 {[%emt 0:00:00]} Nc6 {[%emt 0:04:07]} 28. hxg6 {[%emt 0:00:01]} fxg6 {[%emt 0:00:27]} 29. Bg4 {[%emt 0:01:13]} Bc8 {[%emt 0:03:15]} 30. Qc1 {[%emt 0:02:19]} Qe8 {[%emt 0:00:51]} 31. Qc5 {[%emt 0:01:07]} h6 {[%emt 0:00:33]} 32. Nh3 {[%emt 0:01:31]} Bd7 {[%emt 0:00:52]} 33. Nf4 {[%emt 0:00:59]} Kf7 {[%emt 0:00:36]} 34. Nxd5 {[%emt 0:01:53]} exd5 {[%emt 0:00:26]} 35. Qxd5+ {[%emt 0:00:10]} Be6 {[%emt 0:00:27]} 36. Qf3+ {[%emt 0:00:55]} Kg8 {[%emt 0:00:45]} 37. Bxe6+ {[%emt 0:00:47]} Qxe6 {[%emt 0:00:02]} 38. Qe4 {[%emt 0:00:26]} Ne7 {[%emt 0:00:23]} 39. Qb7 {[%emt 0:00:21]} Kf7 {[%emt 0:00:33]} 40. Qxb4 {[%emt 0:00:00]} Qd5 {[%emt 0:00:00]} 41. Qb6 {[%emt 0:03:28]} Qc6 {[%emt 0:04:39]} 42. Qd8 {[%emt 0:02:19]} Qd5 {[%emt 0:07:19]} 43. Qb6 {[%emt 0:00:24]} Qc6 {[%emt 0:01:18]} 44. Qd8 {[%emt 0:00:59]} Qd5 {[%emt 0:04:44]} 1/2-1/2

[Event "RUDAR 1 IM 2022"]
[Site "Pozarevac"]
[Date "2022.03.28"]
[Round "4.2"]
[White "Spasic, Petar"]
[Black "Savitha Shri B"]
[Result "1-0"]
[ECO "D02"]
[WhiteElo "2334"]
[BlackElo "2257"]
[Annotator "NA"]
[PlyCount "83"]
[EventDate "2022.03.27"]
[EventType "tourn"]
[EventCountry "SRB"]
[SourceTitle "playchess.com"]
[Source "ChessBase"]
[SourceQuality "1"]
[TimeControl "40/5400+30:900+30"]

1. Nf3 {[%emt 0:00:12]} Nf6 {[%emt 0:01:02]} 2. b3 {[%emt 0:00:06]} c5 {[%emt 0:00:24]} 3. Bb2 {[%emt 0:00:16]} e6 {[%emt 0:00:28]} 4. g3 {[%emt 0:00:12]} Nc6 {[%emt 0:00:31]} 5. Bg2 {[%emt 0:00:28]} d5 {[%emt 0:00:58]} 6. O-O {[%emt 0:01:01]} Bd6 {[%emt 0:00:24]} 7. d4 {[%emt 0:01:59]} O-O {[%emt 0:00:08]} 8. dxc5 {[%emt 0:04:14]} Bxc5 {[%emt 0:00:08]} 9. c4 {[%emt 0:00:37]} dxc4 {[%emt 0:06:50]} 10. Qc1 {[%emt 0:05:08]} Qe7 {[%emt 0:02:07]} 11. Qxc4 {[%emt 0:00:38]} e5 {[%emt 0:00:50]} 12. Nbd2 {[%emt 0:07:29]} Bf5 {[%emt 0:08:55]} 13. Rac1 {[%emt 0:10:57]} Bb4 {[%emt 0:07:15]} 14. Nb1 {[%emt 0:14:43]} Bd6 {[%emt 0:18:23]} 15. Nc3 {[%emt 0:20:26]} Rac8 {[%emt 0:06:59]} 16. Nh4 {[%emt 0:01:10]} Be6 {[%emt 0:03:05]} 17. Qd3 {[%emt 0:02:01]} Rfd8 {[%emt 0:10:41]} 18. Ne4 {[%emt 0:09:37]} Nxe4 {[%emt 0:04:04]} 19. Bxe4 {[%emt 0:01:39]} Ba3 {[%emt 0:06:38]} 20. Qb1 {[%emt 0:09:03]} Nd4 {[%emt 0:09:02]} 21. Bxh7+ {[%emt 0:01:08]} Kh8 {[%emt 0:00:39]} 22. Bd3 {[%emt 0:00:03]} e4 {[%emt 0:03:10]} 23. Rxc8 {[%emt 0:00:41]} Bxc8 {[%emt 0:00:20]} 24. Bxa3 {[%emt 0:03:45]} Qxa3 {[%emt 0:00:11]} 25. Bxe4 {[%emt 0:00:05]} Nxe2+ {[%emt 0:00:40]} 26. Kh1 {[%emt 0:01:25]} Qb4 {[%emt 0:03:40]} 27. Bg2 {[%emt 0:01:08]} Be6 {[%emt 0:03:47]} 28. Nf3 {[%emt 0:01:43]} Qb5 {[%emt 0:01:58]} 29. Qe4 {[%emt 0:00:44]} Kg8 {[%emt 0:00:30]} 30. Qe3 {[%emt 0:00:28]} Rc8 {[%emt 0:00:50]} 31. a4 {[%emt 0:00:48]} Qa6 {[%emt 0:00:19]} 32. Ng5 {[%emt 0:00:40]} Re8 {[%emt 0:00:58]} 33. Rd1 {[%emt 0:00:45]} Qa5 {[%emt 0:00:29]} 34. h4 {[%emt 0:01:11]} Nc3 {[%emt 0:00:16]} 35. Rd3 {[%emt 0:00:46]} Nd5 {[%emt 0:00:37]} 36. Qe5 {[%emt 0:00:37]} f6 {[%emt 0:00:37]} 37. Rxd5 {[%emt 0:00:21]} Qa6 {[%emt 0:00:29]} 38. Qd4 {[%emt 0:00:38]} fxg5 {[%emt 0:00:08]} 39. Rxg5 {[%emt 0:00:03]} Re7 {[%emt 0:00:22]} 40. Re5 {[%emt 0:00:00]} Kf8 {[%emt 0:00:00]} 41. Qc5 {[%emt 0:03:38]} Kf7 {[%emt 0:05:55]} 42. Bh3 {[%emt 0:01:15]} 1-0

[Event "RUDAR 1 IM 2022"]
[Site "Pozarevac"]
[Date "2022.03.28"]
[Round "4.3"]
[White "Bryakin, Mikhail"]
[Black "Dudukovic, Nikola"]
[Result "1-0"]
[ECO "A61"]
[WhiteElo "2481"]
[BlackElo "2362"]
[Annotator "ChessBase"]
[PlyCount "65"]
[EventDate "2022.03.27"]
[EventType "tourn"]
[EventCountry "SRB"]
[SourceTitle "playchess.com"]
[Source "ChessBase"]
[SourceQuality "1"]
[TimeControl "40/5400+30:900+30"]

1. d4 {[%emt 0:00:04]} Nf6 {[%emt 0:00:08]} 2. c4 {[%emt 0:00:12]} c5 {[%emt 0:00:26]} 3. d5 {[%emt 0:00:07]} e6 {[%emt 0:00:05]} 4. Nc3 {[%emt 0:00:10]} exd5 {[%emt 0:00:05]} 5. cxd5 {[%emt 0:00:05]} d6 {[%emt 0:00:05]} 6. Nf3 {[%emt 0:00:10]} g6 {[%emt 0:00:11]} 7. Bf4 {[%emt 0:00:22]} a6 {[%emt 0:01:06]} 8. a4 {[%emt 0:00:21]} Bg7 {[%emt 0:00:31]} 9. h3 {[%emt 0:00:21]} O-O {[%emt 0:00:27]} 10. e3 {[%emt 0:00:26]} Ne8 {[%emt 0:05:06]} 11. Be2 {[%emt 0:01:39]} Nd7 {[%emt 0:00:40]} 12. O-O {[%emt 0:00:42]} Rb8 {[%emt 0:02:32]} 13. Qc2 {[%emt 0:04:49]} Qe7 {[%emt 0:06:54]} 14. a5 {[%emt 0:04:12]} Ne5 {[%emt 0:23:49]} 15. Nxe5 {[%emt 0:11:10]} Bxe5 {[%emt 0:00:55]} 16. Bxe5 {[%emt 0:00:47]} Qxe5 {[%emt 0:00:07]} 17. Qd2 {[%emt 0:01:15]} b5 {[%emt 0:06:35]} 18. axb6 {[%emt 0:01:17]} Rxb6 {[%emt 0:00:06]} 19. f4 {[%emt 0:01:11]} Qg7 {[%emt 0:03:33]} 20. e4 {[%emt 0:06:29]} f6 {[%emt 0:12:16]} 21. Bc4 {[%emt 0:03:27]} Nc7 {[%emt 0:01:46]} 22. Rae1 {[%emt 0:07:08]} Re8 {[%emt 0:04:58]} 23. Qf2 {[%emt 0:04:11]} Kh8 {[%emt 0:05:52]} 24. e5 {[%emt 0:02:51]} fxe5 {[%emt 0:03:49]} 25. fxe5 {[%emt 0:00:21]} dxe5 {[%emt 0:00:10]} 26. Qxc5 {[%emt 0:20:35]} Rxb2 {[%emt 0:00:56]} 27. d6 {[%emt 0:01:38]} Ne6 {[%emt 0:03:36]} 28. Rxe5 {[%emt 0:08:34]} Bb7 {[%emt 0:10:30]} 29. Ne4 {[%emt 0:01:54]} Rc2 {[%emt 0:02:01]} 30. Rxe6 {[%emt 0:06:00]} Rxe6 {[%emt 0:00:53]} 31. d7 {[%emt 0:00:09]} Rxg2+ {[%emt 0:00:11]} 32. Kxg2 {[%emt 0:01:29]} Bxe4+ {[%emt 0:00:15]} 33. Kg1 {[%emt 0:00:18]} 1-0

[Event "RUDAR 1 IM 2022"]
[Site "Pozarevac"]
[Date "2022.03.28"]
[Round "4.4"]
[White "Andreev, Konstantin"]
[Black "Anishka Vikram"]
[Result "1-0"]
[ECO "B78"]
[WhiteElo "2238"]
[BlackElo "2000"]
[Annotator "NA"]
[PlyCount "117"]
[EventDate "2022.03.27"]
[EventType "tourn"]
[EventCountry "SRB"]
[SourceTitle "playchess.com"]
[Source "ChessBase"]
[SourceQuality "1"]
[TimeControl "40/5400+30:900+30"]

1. e4 {[%emt 0:00:03]} c5 {[%emt 0:00:07]} 2. Nf3 {[%emt 0:00:07]} d6 {[%emt 0:00:05]} 3. d4 {[%emt 0:00:05]} cxd4 {[%emt 0:00:07]} 4. Nxd4 {[%emt 0:00:05]} Nf6 {[%emt 0:00:06]} 5. Nc3 {[%emt 0:00:05]} g6 {[%emt 0:00:15]} 6. Be3 {[%emt 0:00:23]} Bg7 {[%emt 0:00:06]} 7. f3 {[%emt 0:00:35]} O-O {[%emt 0:00:16]} 8. Bc4 {[%emt 0:00:11]} Nc6 {[%emt 0:00:25]} 9. Qd2 {[%emt 0:00:07]} Bd7 {[%emt 0:00:08]} 10. O-O-O {[%emt 0:00:18]} Rc8 {[%emt 0:00:07]} 11. Bb3 {[%emt 0:00:14]} Nxd4 {[%emt 0:00:11]} 12. Bxd4 {[%emt 0:00:07]} b5 {[%emt 0:00:10]} 13. Nd5 {[%emt 0:00:21]} Nxd5 {[%emt 0:00:44]} 14. Bxg7 {[%emt 0:00:18]} Kxg7 {[%emt 0:00:08]} 15. exd5 {[%emt 0:00:29]} a5 {[%emt 0:01:07]} 16. a3 {[%emt 0:00:07]} b4 {[%emt 0:11:56]} 17. a4 {[%emt 0:04:05]} Qe8 {[%emt 0:12:06]} 18. Kb1 {[%emt 0:00:39]} Bxa4 {[%emt 0:08:34]} 19. h4 {[%emt 0:02:30]} Bxb3 {[%emt 0:01:57]} 20. cxb3 {[%emt 0:00:06]} h6 {[%emt 0:25:26]} 21. h5 {[%emt 0:04:21]} g5 {[%emt 0:01:09]} 22. Rhe1 {[%emt 0:03:41]} Rb8 {[%emt 0:11:27]} 23. Qd4+ {[%emt 0:05:14]} f6 {[%emt 0:03:42]} 24. Qa7 {[%emt 0:00:53]} Rf7 {[%emt 0:00:54]} 25. Re6 {[%emt 0:06:58]} Ra8 {[%emt 0:01:57]} 26. Qe3 {[%emt 0:15:33]} a4 {[%emt 0:04:07]} 27. Rd4 {[%emt 0:01:37]} Rb8 {[%emt 0:09:10]} 28. Rc4 {[%emt 0:07:45]} axb3 {[%emt 0:02:22]} 29. Rc7 {[%emt 0:07:24]} Kf8 {[%emt 0:01:34]} 30. Qxb3 {[%emt 0:00:25]} Qb5 {[%emt 0:00:35]} 31. Re1 {[%emt 0:00:40]} Qb6 {[%emt 0:00:40]} 32. Qc4 {[%emt 0:01:15]} b3 {[%emt 0:00:34]} 33. Qc3 {[%emt 0:06:23]} Qb5 {[%emt 0:01:29]} 34. Kc1 {[%emt 0:10:41]} Qxd5 {[%emt 0:01:03]} 35. Rexe7 {[%emt 0:00:21]} Rxe7 {[%emt 0:01:23]} 36. Qxf6+ {[%emt 0:00:09]} Qf7 {[%emt 0:00:44]} 37. Qh8+ {[%emt 0:00:06]} Qg8 {[%emt 0:00:05]} 38. Qxg8+ {[%emt 0:00:12]} Kxg8 {[%emt 0:00:02]} 39. Rxe7 {[%emt 0:00:07]} Rc8+ {[%emt 0:00:06]} 40. Kd1 {[%emt 0:00:00]} Rc2 {[%emt 0:00:00]} 41. Re2 {[%emt 0:00:09]} Rc6 {[%emt 0:03:01]} 42. g4 {[%emt 0:01:35]} Kf7 {[%emt 0:03:44]} 43. Re3 {[%emt 0:02:42]} Rb6 {[%emt 0:00:10]} 44. Kd2 {[%emt 0:00:15]} Kf6 {[%emt 0:00:45]} 45. Kc3 {[%emt 0:00:23]} d5 {[%emt 0:00:34]} 46. Kd4 {[%emt 0:00:11]} Rb5 {[%emt 0:00:39]} 47. Rc3 {[%emt 0:00:10]} Ra5 {[%emt 0:06:41]} 48. Rxb3 {[%emt 0:00:30]} Kf7 {[%emt 0:02:19]} 49. Rb7+ {[%emt 0:00:27]} Kf6 {[%emt 0:00:09]} 50. Rh7 {[%emt 0:00:29]} Ra4+ {[%emt 0:00:13]} 51. Kxd5 {[%emt 0:00:26]} Rb4 {[%emt 0:00:14]} 52. Rxh6+ {[%emt 0:00:15]} Kf7 {[%emt 0:00:12]} 53. Rh7+ {[%emt 0:01:15]} Kg8 {[%emt 0:00:41]} 54. Rd7 {[%emt 0:00:38]} Rxb2 {[%emt 0:00:14]} 55. Ke4 {[%emt 0:00:12]} Rb4+ {[%emt 0:00:23]} 56. Kf5 {[%emt 0:00:17]} Rf4+ {[%emt 0:01:02]} 57. Kg6 {[%emt 0:00:17]} Rf8 {[%emt 0:02:42]} 58. Rd3 {[%emt 0:00:07]} Rc8 {[%emt 0:01:48]} 59. Kxg5 {[%emt 0:00:09]} 1-0

[Event "RUDAR 1 IM 2022"]
[Site "Pozarevac"]
[Date "2022.03.28"]
[Round "4.5"]
[White "Bura, Goran"]
[Black "Trifunovic, Miroljub"]
[Result "1/2-1/2"]
[ECO "E06"]
[WhiteElo "2185"]
[BlackElo "2144"]
[Annotator "NA"]
[PlyCount "100"]
[EventDate "2022.03.27"]
[EventType "tourn"]
[EventCountry "SRB"]
[SourceTitle "playchess.com"]
[Source "ChessBase"]
[SourceQuality "1"]
[TimeControl "40/5400+30:900+30"]

1. d4 {[%emt 0:00:02]} Nf6 {[%emt 0:00:56]} 2. c4 {[%emt 0:00:18]} e6 {[%emt 0:00:42]} 3. Nf3 {[%emt 0:00:28]} d5 {[%emt 0:01:44]} 4. g3 {[%emt 0:00:30]} Be7 {[%emt 0:01:11]} 5. Bg2 {[%emt 0:00:06]} O-O {[%emt 0:00:33]} 6. O-O {[%emt 0:00:18]} c6 {[%emt 0:05:22]} 7. Nbd2 {[%emt 0:00:17]} Na6 {[%emt 0:11:03]} 8. Ne5 {[%emt 0:08:37]} c5 {[%emt 0:10:02]} 9. Ndf3 {[%emt 0:01:19]} cxd4 {[%emt 0:19:20]} 10. Nxd4 {[%emt 0:07:57]} Nc5 {[%emt 0:10:47]} 11. Be3 {[%emt 0:07:31]} Ncd7 {[%emt 0:08:09]} 12. Ndf3 {[%emt 0:05:29]} Nxe5 {[%emt 0:05:07]} 13. Nxe5 {[%emt 0:00:04]} Qc7 {[%emt 0:09:21]} 14. Qd4 {[%emt 0:08:09]} Rd8 {[%emt 0:05:19]} 15. cxd5 {[%emt 0:01:49]} Nxd5 {[%emt 0:00:52]} 16. Rac1 {[%emt 0:07:09]} Qd6 {[%emt 0:01:17]} 17. Nc4 {[%emt 0:01:01]} Qa6 {[%emt 0:00:43]} 18. Rfd1 {[%emt 0:02:45]} b5 {[%emt 0:00:21]} 19. Ne5 {[%emt 0:02:44]} Bb7 {[%emt 0:00:38]} 20. Bd2 {[%emt 0:17:12]} Nf6 {[%emt 0:02:16]} 21. Bxb7 {[%emt 0:02:15]} Qxb7 {[%emt 0:00:13]} 22. Qf4 {[%emt 0:00:58]} Bd6 {[%emt 0:00:48]} 23. Ba5 {[%emt 0:00:20]} Bxe5 {[%emt 0:02:20]} 24. Qxe5 {[%emt 0:02:10]} Rxd1+ {[%emt 0:01:05]} 25. Rxd1 {[%emt 0:00:01]} h6 {[%emt 0:00:09]} 26. Rc1 {[%emt 0:01:30]} a6 {[%emt 0:01:24]} 27. Rc7 {[%emt 0:00:39]} Qd5 {[%emt 0:00:07]} 28. Qxd5 {[%emt 0:01:28]} Nxd5 {[%emt 0:02:41]} 29. Rc6 {[%emt 0:00:13]} Ne7 {[%emt 0:00:00]} 30. Rd6 {[%emt 0:00:41]} Kf8 {[%emt 0:00:00]} 31. e4 {[%emt 0:00:52]} Ke8 {[%emt 0:00:00]} 32. Kg2 {[%emt 0:00:49]} e5 {[%emt 0:00:37]} 33. h4 {[%emt 0:00:12]} f6 {[%emt 0:00:19]} 34. h5 {[%emt 0:00:35]} Kf7 {[%emt 0:00:36]} 35. f4 {[%emt 0:01:36]} exf4 {[%emt 0:00:15]} 36. gxf4 {[%emt 0:00:03]} Rc8 {[%emt 0:00:25]} 37. e5 {[%emt 0:05:35]} fxe5 {[%emt 0:00:21]} 38. fxe5 {[%emt 0:00:30]} Rc6 {[%emt 0:00:38]} 39. Kf3 {[%emt 0:04:58]} Rxd6 {[%emt 0:01:13]} 40. exd6 {[%emt 0:00:00]} Nc6 {[%emt 0:00:00]} 41. Bc3 {[%emt 0:02:03]} b4 {[%emt 0:00:53]} 42. Be1 {[%emt 0:00:36]} Ke6 {[%emt 0:00:23]} 43. Bg3 {[%emt 0:00:12]} Nd4+ {[%emt 0:00:45]} 44. Kg4 {[%emt 0:00:48]} Nc6 {[%emt 0:06:18]} 45. b3 {[%emt 0:02:58]} a5 {[%emt 0:00:30]} 46. Bf4 {[%emt 0:08:06]} Nd4 {[%emt 0:03:45]} 47. Be3 {[%emt 0:01:32]} Nc6 {[%emt 0:01:02]} 48. Bf4 {[%emt 0:00:19]} Kf6 {[%emt 0:02:27]} 49. Bg3 {[%emt 0:01:11]} Ke6 {[%emt 0:00:24]} 50. Bf4 {[%emt 0:00:05]} Nd8 {[%emt 0:05:09]} 1/2-1/2

[Event "RUDAR 1 IM 2022"]
[Site "Pozarevac"]
[Date "2022.03.29"]
[Round "6.1"]
[White "Savitha Shri B"]
[Black "Acor, Corey"]
[Result "0-1"]
[ECO "C60"]
[WhiteElo "2257"]
[BlackElo "2326"]
[Annotator "NA"]
[PlyCount "80"]
[EventDate "2022.03.27"]
[EventType "tourn"]
[EventCountry "SRB"]
[SourceTitle "playchess.com"]
[Source "ChessBase"]
[SourceQuality "1"]
[TimeControl "40/5400+30:900+30"]

1. e4 {[%emt 0:03:50]} e5 {[%emt 0:00:14]} 2. Nf3 {[%emt 0:00:17]} Nc6 {[%emt 0:00:07]} 3. Bb5 {[%emt 0:00:02]} Nge7 {[%emt 0:00:13]} 4. O-O {[%emt 0:00:24]} d6 {[%emt 0:00:18]} 5. c3 {[%emt 0:00:05]} Bd7 {[%emt 0:00:26]} 6. d4 {[%emt 0:00:05]} Ng6 {[%emt 0:00:13]} 7. d5 {[%emt 0:00:04]} Nb8 {[%emt 0:00:08]} 8. c4 {[%emt 0:00:04]} Be7 {[%emt 0:01:29]} 9. Nc3 {[%emt 0:00:05]} h6 {[%emt 0:03:39]} 10. Bxd7+ {[%emt 0:00:33]} Nxd7 {[%emt 0:00:10]} 11. Be3 {[%emt 0:03:15]} Bg5 {[%emt 0:02:02]} 12. Qd2 {[%emt 0:05:23]} Bxe3 {[%emt 0:05:09]} 13. Qxe3 {[%emt 0:00:50]} O-O {[%emt 0:00:51]} 14. Ne2 {[%emt 0:01:27]} f5 {[%emt 0:02:24]} 15. exf5 {[%emt 0:03:33]} Rxf5 {[%emt 0:00:09]} 16. Ne1 {[%emt 0:03:12]} Qh4 {[%emt 0:06:04]} 17. Rc1 {[%emt 0:10:27]} a5 {[%emt 0:05:36]} 18. Nd3 {[%emt 0:09:19]} Raf8 {[%emt 0:17:41]} 19. h3 {[%emt 0:08:10]} e4 {[%emt 0:27:01]} 20. Ng3 {[%emt 0:20:27]} Rf3 {[%emt 0:00:43]} 21. gxf3 {[%emt 0:02:47]} Rxf3 {[%emt 0:00:08]} 22. Qe2 {[%emt 0:00:41]} Nde5 {[%emt 0:11:37]} 23. Nxe5 {[%emt 0:01:59]} Nf4 {[%emt 0:06:47]} 24. Qxe4 {[%emt 0:08:16]} Rxg3+ {[%emt 0:03:00]} 25. fxg3 {[%emt 0:00:10]} Qxg3+ {[%emt 0:00:05]} 26. Kh1 {[%emt 0:00:14]} Qxh3+ {[%emt 0:00:07]} 27. Kg1 {[%emt 0:00:09]} Qg3+ {[%emt 0:00:11]} 28. Kh1 {[%emt 0:00:08]} Qh4+ {[%emt 0:00:15]} 29. Kg1 {[%emt 0:00:50]} Nh3+ {[%emt 0:01:32]} 30. Kh2 {[%emt 0:00:25]} Qxe4 {[%emt 0:00:51]} 31. Rce1 {[%emt 0:03:28]} Qc2+ {[%emt 0:00:12]} 32. Kxh3 {[%emt 0:00:25]} dxe5 {[%emt 0:00:02]} 33. Rxe5 {[%emt 0:03:47]} Qd3+ {[%emt 0:00:19]} 34. Kg2 {[%emt 0:00:05]} Qxc4 {[%emt 0:00:26]} 35. Rf3 {[%emt 0:03:30]} Qxa2 {[%emt 0:00:57]} 36. Re8+ {[%emt 0:03:39]} Kh7 {[%emt 0:00:02]} 37. Re7 {[%emt 0:00:17]} Qxd5 {[%emt 0:04:20]} 38. Rxc7 {[%emt 0:00:22]} Qg5+ {[%emt 0:02:16]} 39. Kh3 {[%emt 0:01:45]} Qh5+ {[%emt 0:00:05]} 40. Kg2 {[%emt 0:00:00]} Qg4+ {[%emt 0:00:00]} 0-1

[Event "RUDAR 1 IM 2022"]
[Site "Pozarevac"]
[Date "2022.03.29"]
[Round "6.4"]
[White "Bura, Goran"]
[Black "Anishka Vikram"]
[Result "1-0"]
[ECO "B51"]
[WhiteElo "2185"]
[BlackElo "2000"]
[Annotator "TA"]
[PlyCount "75"]
[EventDate "2022.03.27"]
[EventType "tourn"]
[EventCountry "SRB"]
[SourceTitle "playchess.com"]
[Source "ChessBase"]
[SourceQuality "1"]
[TimeControl "40/5400+30:900+30"]

{[%evp 23,75,17,14,6,12,-20,-18,-16,-31,-36,-33,-61,12,12,14,13,18,16,21,17,23,15,10,12,25,17,103,106,107,106,99,77,140,16,46,46,50,14,56,63,34,45,87,79,81,77,87,35,120,103,29996,29997,29997,29998]} 1. e4 {[%emt 0:00:13]} c5 {[%emt 0:00:03]} 2. Nf3 {[%emt 0:00:06]} d6 {[%emt 0:00:06]} 3. Bb5+ {[%emt 0:00:10]} Nd7 {[%emt 0:00:19]} 4. d4 {[%emt 0:00:41]} cxd4 {[%emt 0:00:09]} 5. Qxd4 {[%emt 0:00:07]} e5 {[%emt 0:04:21]} 6. Qd3 {[%emt 0:00:06]} a6 {[%emt 0:00:37]} 7. Bxd7+ {[%emt 0:00:08]} Bxd7 {[%emt 0:00:21]} 8. c4 {[%emt 0:00:14]} b5 {[%emt 0:00:26]} 9. Nc3 {[%emt 0:00:24]} bxc4 {[%emt 0:13:12]} 10. Qxc4 {[%emt 0:00:09]} Be6 {[%emt 0:05:10]} 11. Qd3 {[%emt 0:00:48]} Nf6 {[%emt 0:03:14]} 12. O-O {[%emt 0:00:44]} h6 {[%emt 0:02:01]} 13. Rd1 {[%emt 0:00:11]} Be7 {[%emt 0:00:34]} 14. Qe2 {[%emt 0:05:51]} Qc7 {[%emt 0:07:35]} 15. h3 {[%emt 0:03:21]} O-O {[%emt 0:00:49]} 16. Nh4 {[%emt 0:06:28]} Rfd8 {[%emt 0:08:39]} 17. Qf3 {[%emt 0:02:13]} d5 {[%emt 0:22:56]} (17... Qd7 $1 $15) 18. exd5 $11 {[%emt 0:00:17]} Nxd5 {[%emt 0:00:19]} (18... Bxd5 {is interesting.} 19. Nxd5 Rxd5 20. Rxd5 e4) 19. Nxd5 {[%emt 0:00:26]} Bxd5 {[%emt 0:00:05]} 20. Rxd5 {[%emt 0:00:07]} Rxd5 {[%emt 0:04:18]} 21. Qxd5 {[%emt 0:00:05]} Rd8 {[%emt 0:00:04]} 22. Qb3 {[%emt 0:03:45]} Bxh4 {[%emt 0:00:13]} 23. Be3 {[%emt 0:00:25]} Rb8 {[%emt 0:03:49]} 24. Qa4 {[%emt 0:02:56]} Bf6 {[%emt 0:01:06]} (24... Bg5 $11) 25. Rc1 $16 {[%emt 0:04:06]} Qb7 {[%emt 0:01:06]} 26. b3 {[%emt 0:00:08]} Rc8 {[%emt 0:01:30]} 27. Rd1 {[%emt 0:00:38]} Rc2 {[%emt 0:08:38]} ({Black should try} 27... Rc6) 28. Qe8+ {[%emt 0:01:02]} (28. Rd6 $16) 28... Kh7 $14 {[%emt 0:00:02]} 29. Rd7 {[%emt 0:00:36]} Rc7 {[%emt 0:01:37]} 30. Rd6 {[%emt 0:01:13]} Be7 {[%emt 0:03:17]} 31. Rb6 {[%emt 0:00:24]} Qd5 $1 {[%emt 0:02:09]} 32. Rxa6 {[%emt 0:04:42]} Bg5 {[%emt 0:04:51]} 33. Qa8 {[%emt 0:03:28]} ({Much worse is} 33. Ra8 $6 Bxe3 34. fxe3 Rc1+ 35. Kh2 Qd1 36. Qxf7 Qg1+ 37. Kg3 Qxe3+ 38. Qf3 Qe1+ 39. Kh2 (39. Kg4 $2 Qb4+ 40. Kg3 Rc3 $19) 39... Qg1+ 40. Kg3 Qe1+ 41. Kh2 (41. Kg4 $2 Qb4+ 42. Kg3 Rc3 $19) 41... Qg1+ 42. Kg3 Qe1+ $11) 33... Qd3 {[%emt 0:01:13]} 34. Bxg5 {[%emt 0:03:50]} hxg5 {[%emt 0:00:07]} 35. Ra4 {[%emt 0:00:04]} (35. Ra7 $16 Rc1+ 36. Kh2) 35... Rc2 {[%emt 0:01:55]} (35... Rc1+ $1 $14 36. Kh2 Rc2) 36. Qf3 $16 {[%emt 0:02:26]} Qd2 $2 {[%emt 0:00:36][%mdl 8192]} (36... Qxf3 $16 37. gxf3 Rb2) 37. Qh5+ {[%emt 0:00:27]} Kg8 {[%emt 0:00:23]} 38. Ra8+ {[%emt 0:00:09]} 1-0

[Event "RUDAR 1 IM 2022"]
[Site "Pozarevac"]
[Date "2022.03.29"]
[Round "6.5"]
[White "Milanovic, Slavisa"]
[Black "Dudukovic, Nikola"]
[Result "1/2-1/2"]
[ECO "A39"]
[WhiteElo "2296"]
[BlackElo "2362"]
[Annotator "NA"]
[PlyCount "20"]
[EventDate "2022.03.27"]
[EventType "tourn"]
[EventCountry "SRB"]
[SourceTitle "playchess.com"]
[Source "ChessBase"]
[SourceQuality "1"]
[TimeControl "40/5400+30:900+30"]

1. c4 {[%emt 0:00:13]} Nf6 {[%emt 0:00:06]} 2. Nc3 {[%emt 0:00:06]} g6 {[%emt 0:00:07]} 3. Nf3 {[%emt 0:00:05]} Bg7 {[%emt 0:00:05]} 4. g3 {[%emt 0:00:04]} O-O {[%emt 0:00:08]} 5. Bg2 {[%emt 0:00:03]} c5 {[%emt 0:00:21]} 6. O-O {[%emt 0:00:07]} Nc6 {[%emt 0:00:05]} 7. d4 {[%emt 0:00:05]} cxd4 {[%emt 0:00:06]} 8. Nxd4 {[%emt 0:00:03]} Ng4 {[%emt 0:00:37]} 9. e3 {[%emt 0:00:33]} Nge5 {[%emt 0:00:17]} 10. b3 {[%emt 0:00:07]} Nxd4 {[%emt 0:00:27]} 1/2-1/2